bitfinex-derivatives/quotes_BNBF0:USTF0_20250413
["timestamp","ask_amount","ask_price","bid_price","bid_amount"]
[1744580643269,0.34333585,582.52,581.52,3.504]
[1744580643471,0.31256094,582.51,581.52,3.504]
[1744580643668,0.34334763,582.5,581.52,3.504]
[1744580643875,0.31256094,582.49,581.52,3.504]
[1744580644069,0.34335942,582.48,581.52,3.504]
[1744580644272,0.31256094,582.47,581.52,3.504]
[1744580644469,0.34337121,582.46,581.52,3.504]
[1744580644675,0.31256094,582.45,581.52,3.504]
[1744580644869,0.343383,582.44,581.52,3.504]
[1744580645069,0.31256727,582.43,581.52,3.504]
[1744580645274,0.3433948,582.42,581.52,3.504]
[1744580645473,0.31256727,582.41,581.52,3.504]
[1744580645676,0.34340659,582.4,581.52,3.504]
[1744580645970,0.31256727,582.39,581.52,3.504]
[1744580646174,0.34341838,582.38,581.52,3.504]
[1744580646474,0.31256655,582.37,581.52,3.504]
[1744580646775,0.34343018,582.36,581.52,3.504]
[1744580646974,0.31256655,582.35,581.52,3.504]
[1744580647274,0.34344197,582.34,581.52,3.504]
[1744580647573,0.31256655,582.33,581.52,3.504]
[1744580649472,0.34344197,582.34,581.52,3.504]
[1744580649775,0.31263033,582.33,581.52,3.504]
[1744580650979,0.34344197,582.34,581.52,3.504]
[1744580651179,0.31262373,582.33,581.52,3.504]
[1744580654077,0.34344197,582.34,581.52,3.504]
[1744580654275,0.31261469,582.33,581.52,3.504]
[1744580658584,0.34344197,582.34,581.52,3.504]
[1744580658784,0.31262331,582.33,581.52,3.504]
[1744580659781,0.34344197,582.34,581.52,3.504]
[1744580661982,0.31289498,582.33,581.52,3.504]
[1744580663189,0.34344197,582.34,581.52,3.504]
[1744580663484,0.31298068,582.33,581.52,3.504]
[1744580669590,0.31302204,582.32,581.52,3.504]
[1744580669792,0.31302204,582.33,581.52,3.504]
[1744580669991,0.31302204,582.32,581.52,3.504]
[1744580670192,0.31302204,582.33,581.52,3.504]
[1744580670391,0.31302204,582.32,581.52,3.504]
[1744580670586,0.31302204,582.31,581.52,3.504]
[1744580670792,0.31302204,582.33,581.52,3.504]
[1744580670986,0.34344197,582.34,581.52,3.504]
[1744580670987,0.31302204,582.32,581.52,3.504]
[1744580671187,0.31302204,582.33,581.52,3.504]
[1744580671386,0.31302204,582.32,581.52,3.504]
[1744580671685,0.31302204,582.31,581.52,3.504]
[1744580671885,0.34344197,582.34,581.52,3.504]
[1744580672089,0.31304585,582.33,581.52,3.504]
[1744580672492,0.34344197,582.34,581.52,3.504]
[1744580675096,0.216,582.33,581.52,3.504]
[1744580677298,0.58967958,582.32,581.52,3.504]
[1744580677493,0.58967958,582.31,581.52,3.504]
[1744580677699,0.58967958,582.3,581.52,3.504]
[1744580677899,0.58967958,582.29,581.52,3.504]
[1744580678099,0.58967958,582.28,581.52,3.504]
[1744580678298,0.58967958,582.27,581.52,3.504]
[1744580678498,0.58967958,582.26,581.52,3.504]
[1744580678698,0.58967958,582.25,581.52,3.504]
[1744580678995,0.58967958,582.24,581.52,3.504]
[1744580679194,0.58967958,582.23,581.52,3.504]
[1744580679392,0.58967958,582.22,581.52,3.504]
[1744580679595,0.58967958,582.21,581.52,3.504]
[1744580679795,0.58967958,582.2,581.52,3.504]
[1744580679994,0.58967958,582.19,581.52,3.504]
[1744580680196,0.58967958,582.18,581.52,3.504]
[1744580680400,0.58967958,582.17,581.53,0.31584323]
[1744580680601,0.58967958,582.16,581.53,0.31584323]
[1744580680800,0.58967958,582.15,581.53,0.31584323]
[1744580681000,0.58967958,582.14,581.19,0.31584323]
[1744580681193,0.58967958,582.13,581.2,0.31584323]
[1744580681402,0.58967958,582.12,581.19,0.31584323]
[1744580681600,0.58967958,582.11,581.2,0.31584323]
[1744580681799,0.58967958,582.1,581.19,0.31584323]
[1744580681999,0.58967958,582.09,581.19,0.31584323]
[1744580682200,0.58967958,582.08,581.19,0.31584323]
[1744580682395,0.58967958,582.07,581.2,0.31584323]
[1744580682699,0.58967958,582.06,581.21,0.31584323]
[1744580682898,0.58967958,582.05,581.19,0.31584323]
[1744580683095,0.58967958,582.04,581.22,0.505]
[1744580683298,0.58967958,582.03,581.23,0.31584323]
[1744580683496,0.58967958,582.02,581.22,0.505]
[1744580683697,0.58967958,582.01,581.23,0.75884832]
[1744580683898,0.58967958,582.0,581.24,0.31584832]
[1744580684096,0.58967958,581.99,581.24,0.31584832]
[1744580684296,0.58967958,581.98,581.24,0.31584832]
[1744580684503,0.58967958,581.97,581.25,0.574]
[1744580684702,0.58967958,581.96,581.26,0.31584832]
[1744580685001,0.58967958,581.95,581.25,0.574]
[1744580685201,0.58967958,581.94,581.26,0.31582883]
[1744580685402,0.58967958,581.93,581.26,0.31582883]
[1744580685601,0.58967958,581.92,581.26,0.31582883]
[1744580685801,0.58967958,581.91,581.26,0.31582883]
[1744580685997,0.58967958,581.9,581.26,0.31582883]
[1744580686201,0.58967958,581.89,581.26,0.31582883]
[1744580686401,0.58967958,581.88,581.26,0.31582883]
[1744580686701,0.58967958,581.87,581.27,0.31582923]
[1744580686899,0.58967958,581.86,581.28,0.31582923]
[1744580687099,0.58967958,581.85,581.26,0.31582923]
[1744580687300,0.58967958,581.84,581.27,0.31582923]
[1744580687496,0.58967958,581.83,581.26,0.31582923]
[1744580687701,0.58967958,581.82,581.26,0.31582923]
[1744580687896,0.58967958,581.81,581.26,0.31582923]
[1744580688100,0.216,582.33,581.25,0.574]
[1744580688301,0.90285043,582.32,581.26,0.31583012]
[1744580688503,0.90285043,582.31,581.26,0.31583012]
[1744580688702,0.58965232,582.3,581.26,0.31583012]
[1744580688902,0.58965232,582.29,581.26,0.31583012]
[1744580689099,0.58965232,582.28,581.26,0.31583012]
[1744580689301,0.58965232,582.27,581.26,0.31583012]
[1744580689500,0.58965232,582.26,581.26,0.31583012]
[1744580689705,0.58965232,582.25,581.25,0.574]
[1744580689904,0.58965232,582.24,581.26,0.315835]
[1744580690104,0.58965232,582.23,581.26,0.315835]
[1744580690305,0.58965232,582.22,581.26,0.315835]
[1744580690604,0.58965232,582.21,581.26,0.315835]
[1744580690805,0.58965232,582.2,581.26,0.315835]
[1744580691005,0.58965232,582.19,581.26,0.315835]
[1744580691206,0.58965232,582.18,581.26,0.315835]
[1744580691404,0.58965232,582.17,581.26,0.315835]
[1744580691602,0.58965232,582.16,581.26,0.315835]
[1744580691805,0.58965232,582.15,581.26,0.315835]
[1744580692104,0.58965232,582.14,581.26,0.315835]
[1744580692304,0.58965232,582.13,581.26,0.315835]
[1744580692509,0.58965232,582.12,581.26,0.315835]
[1744580692704,0.58965232,582.11,581.26,0.315835]
[1744580692907,0.58965232,582.1,581.26,0.315835]
[1744580693102,0.58965232,582.09,581.26,0.315835]
[1744580693303,0.58965232,582.08,581.26,0.315835]
[1744580693503,0.58965232,582.07,581.26,0.315835]
[1744580693702,0.58965232,582.06,581.26,0.315835]
[1744580693901,0.58965232,582.05,581.26,0.315835]
[1744580694106,0.58965232,582.04,581.26,0.315835]
[1744580694407,0.58965232,582.03,581.25,0.574]
[1744580694610,0.58965232,582.02,581.26,0.31583379]
[1744580694805,0.58965232,582.01,581.26,0.31583379]
[1744580695006,0.58965232,582.0,581.26,0.31583379]
[1744580695210,0.58965232,581.99,581.26,0.31583379]
[1744580695405,0.58965232,581.98,581.26,0.31583379]
[1744580695605,0.58965232,581.97,581.26,0.31583379]
[1744580695803,0.58965232,581.96,581.26,0.31583379]
[1744580696006,0.58965232,581.95,581.25,0.574]
[1744580696209,0.58965232,581.94,581.26,0.31583534]
[1744580696404,0.58965232,581.93,581.26,0.31583534]
[1744580696607,0.58965232,581.92,581.27,0.31583534]
[1744580696808,0.58965232,581.91,581.28,0.31583534]
[1744580697005,0.58965232,581.9,581.25,0.31583534]
[1744580697209,0.58965232,581.89,581.26,0.31583534]
[1744580697404,0.58965232,581.88,581.27,0.31583534]
[1744580697610,0.58965232,581.87,581.26,0.525]
[1744580697807,0.58965232,581.86,581.27,0.31583747]
[1744580698010,0.58965232,581.85,581.27,0.31583747]
[1744580698217,0.58965232,581.84,581.27,0.31583747]
[1744580698412,0.58965232,581.83,581.27,0.31583747]
[1744580698612,0.58965232,581.82,581.27,0.31583747]
[1744580698811,0.58965834,581.81,581.27,0.31583747]
[1744580699017,0.216,582.04,581.27,0.31583747]
[1744580699214,0.58965724,582.03,581.27,0.74283747]
[1744580699411,0.58965724,582.02,581.28,0.31583747]
[1744580699612,0.58965724,582.01,581.28,0.31583747]
[1744580699814,0.58965724,582.0,581.28,0.31583747]
[1744580700015,0.58965724,581.99,581.28,0.31583747]
[1744580700217,0.58965724,581.98,581.28,0.31583747]
[1744580700417,0.58965724,581.97,581.28,0.31583747]
[1744580700617,0.58965724,581.96,581.28,0.31583747]
[1744580700812,0.58965724,581.95,581.28,0.31583747]
[1744580701012,0.58965724,581.94,581.28,0.31583747]
[1744580701213,0.58965724,581.93,581.28,0.31583747]
[1744580701415,0.58965724,581.92,581.28,0.31583747]
[1744580701611,0.58965724,581.91,581.28,0.31583747]
[1744580701816,0.58965724,581.9,581.28,0.31583747]
[1744580702017,0.58965724,581.89,581.28,0.31583747]
[1744580702217,0.58965724,581.88,581.28,0.31583747]
[1744580702516,0.58965724,581.87,581.28,0.31583747]
[1744580702710,0.58965724,581.86,581.28,0.31583747]
[1744580702911,0.58965724,581.85,581.28,0.31583747]
[1744580703220,0.58965724,581.84,581.28,0.31583747]
[1744580703420,0.58965724,581.83,581.28,0.31583747]
[1744580703616,0.216,582.04,581.27,0.427]
[1744580703812,0.59008092,582.03,581.28,0.31582295]
[1744580704015,0.59008092,582.02,581.28,0.31582295]
[1744580704213,0.59008092,582.01,581.28,0.31582295]
[1744580704418,0.59008092,582.0,581.28,0.31582295]
[1744580704717,0.59008092,581.99,581.28,0.31582295]
[1744580704918,0.59008092,581.98,581.28,0.31582295]
[1744580705112,0.59008092,581.97,581.28,0.31582295]
[1744580705313,0.59008092,581.96,581.27,0.427]
[1744580705513,0.59008092,581.95,581.28,0.31582326]
[1744580705812,0.216,582.04,581.28,0.31582326]
[1744580705813,0.59008092,581.94,581.28,0.31582326]
[1744580706016,0.59008092,581.93,581.28,0.31582326]
[1744580706217,0.59008092,581.92,581.28,0.31582326]
[1744580706417,0.59008092,581.91,581.28,0.31582326]
[1744580706715,0.59008092,581.9,581.29,0.3158411]
[1744580706920,0.34344197,582.34,581.27,0.427]
[1744580706921,0.59008092,581.89,581.27,0.427]
[1744580707114,0.59008092,581.88,581.28,0.31584117]
[1744580707318,0.59008092,581.87,581.28,0.31584117]
[1744580707515,0.59008092,581.86,581.28,0.31584117]
[1744580707814,0.59008092,581.85,581.28,0.31584117]
[1744580708017,0.59008092,581.84,581.28,0.31584117]
[1744580708219,0.59008092,581.83,581.28,0.31584117]
[1744580708414,0.59008092,581.82,581.28,0.31584117]
[1744580708618,0.59008092,581.81,581.28,0.31584117]
[1744580708819,0.59008092,581.8,581.28,0.31584117]
[1744580709118,0.34344197,582.34,581.28,0.31584117]
[1744580709322,0.90375824,582.33,581.28,0.31584117]
[1744580709519,0.34344197,582.34,581.28,0.31584117]
[1744580709520,0.90375824,582.32,581.28,0.31584117]
[1744580709721,0.90375824,582.31,581.28,0.31584117]
[1744580710020,0.90375824,582.3,581.28,0.31584117]
[1744580710223,0.59025833,582.29,581.27,0.427]
[1744580710421,0.59025833,582.28,581.28,0.31584027]
[1744580710724,0.59025833,582.27,581.28,0.31584027]
[1744580710921,0.59025833,582.26,581.28,0.31584027]
[1744580711217,0.59025833,582.25,581.28,0.31584027]
[1744580711422,0.59025833,582.24,581.28,0.31584027]
[1744580711617,0.59025833,582.23,581.28,0.31584027]
[1744580711822,0.59025833,582.22,581.28,0.31584027]
[1744580712022,0.59025833,582.21,581.28,0.31584027]
[1744580712222,0.59025833,582.2,581.28,0.31584027]
[1744580712423,0.59025833,582.19,581.28,0.31584027]
[1744580712616,0.59025833,582.18,581.28,0.31584027]
[1744580712817,0.59025833,582.17,581.28,0.31584027]
[1744580713023,0.59025833,582.16,581.28,0.31584027]
[1744580713224,0.59025833,582.15,581.28,0.31584027]
[1744580713518,0.59025833,582.14,581.28,0.31584027]
[1744580713722,0.59025833,582.13,581.28,0.31584027]
[1744580713923,0.59025833,582.12,581.28,0.31584027]
[1744580714124,0.59025833,582.11,581.28,0.31584027]
[1744580714319,0.59025833,582.1,581.28,0.31584027]
[1744580714521,0.59019131,582.09,581.28,0.31584027]
[1744580714721,0.59019131,582.08,581.28,0.31584027]
[1744580715021,0.59019131,582.07,581.28,0.31584027]
[1744580715218,0.59019131,582.06,581.28,0.82084027]
[1744580715423,0.59019131,582.05,581.29,0.31584027]
[1744580715623,0.59019131,582.04,581.29,0.31584027]
[1744580715825,0.59019131,582.03,581.29,0.31584027]
[1744580716020,0.59019131,582.02,581.29,0.31584027]
[1744580716225,0.59019131,582.01,581.29,0.31584027]
[1744580716425,0.59019131,582.0,581.29,0.31584027]
[1744580716629,0.59019131,581.99,581.29,0.84984027]
[1744580716829,0.59019131,581.98,581.3,0.31584027]
[1744580717022,0.59019131,581.97,581.3,0.31584027]
[1744580717223,0.59019131,581.96,581.3,0.31584027]
[1744580717426,0.59019131,581.95,581.3,0.31584027]
[1744580717625,0.59019131,581.94,581.3,0.31584027]
[1744580717829,0.59019131,581.93,581.3,0.79484027]
[1744580718022,0.59019131,581.92,581.31,0.31584027]
[1744580718223,0.59019131,581.91,581.3,0.479]
[1744580718425,0.59019131,581.9,581.31,0.31583357]
[1744580718721,0.59019131,581.89,581.31,0.31583357]
[1744580718926,0.59019131,581.88,581.31,0.31583357]
[1744580719122,0.59019131,581.87,581.31,0.31583357]
[1744580719323,0.59019131,581.86,581.31,0.31583357]
[1744580719521,0.59019131,581.85,581.31,0.31583357]
[1744580719726,0.59019131,581.84,581.31,0.31583357]
[1744580719923,0.59019131,581.83,581.3,0.479]
[1744580720125,0.59019131,581.82,581.31,0.31583384]
[1744580720328,0.59019131,581.81,581.31,0.31583384]
[1744580720527,0.59019131,581.8,581.31,0.31583384]
[1744580720723,0.59019131,581.79,581.31,0.31583384]
[1744580720926,0.216,582.33,581.31,0.31583384]
[1744580721128,0.5905729,582.32,581.31,0.31583384]
[1744580721328,0.5905729,582.31,581.31,0.31583384]
[1744580721531,0.5905729,582.3,581.31,0.31583384]
[1744580721828,0.5905729,582.29,581.31,0.31583384]
[1744580722028,0.5905729,582.28,581.31,0.31583384]
[1744580722330,0.5905729,582.27,581.31,0.31583384]
[1744580722630,0.59061813,582.26,581.31,0.31583384]
[1744580722826,0.216,582.33,581.31,0.31583384]
[1744580722827,0.59061813,582.25,581.31,0.31583384]
[1744580723030,0.59061813,582.24,581.31,0.77483384]
[1744580723233,0.59061881,582.23,581.32,0.31583384]
[1744580723432,0.59061881,582.22,581.32,0.31583384]
[1744580723634,0.59061881,582.21,581.32,0.31583384]
[1744580723833,0.59061881,582.2,581.32,0.31583384]
[1744580724034,0.59061881,582.19,581.32,0.31583384]
[1744580724238,0.59061881,582.18,581.32,0.31583384]
[1744580724438,0.59061881,582.17,581.32,0.31583384]
[1744580724632,0.59061881,582.16,581.32,0.31583384]
[1744580724836,0.59061881,582.15,581.32,0.31583384]
[1744580725033,0.59061881,582.14,581.32,0.31583384]
[1744580725236,0.59061881,582.13,581.32,0.31583384]
[1744580725440,0.59061881,582.12,581.32,0.31583384]
[1744580725639,0.59061881,582.11,581.32,0.31583384]
[1744580725841,0.59061881,582.1,581.32,0.31583384]
[1744580726041,0.59061881,582.09,581.32,0.31583384]
[1744580726241,0.59061881,582.08,581.32,0.31583384]
[1744580726443,0.59061881,582.07,581.32,0.31583384]
[1744580726639,0.59061881,582.06,581.32,0.31583384]
[1744580726836,0.59061881,582.05,581.32,0.31583384]
[1744580727038,0.59061881,582.04,581.32,0.31583384]
[1744580727238,0.59061881,582.03,581.32,0.31583384]
[1744580727436,0.59061881,582.02,581.32,0.31583384]
[1744580727640,0.59061881,582.01,581.32,0.31583384]
[1744580727835,0.59061881,582.0,581.32,0.31583384]
[1744580728042,0.59061881,581.99,581.32,0.31583384]
[1744580728242,0.59061881,581.98,581.33,0.69]
[1744580728439,0.59061881,581.97,581.34,0.31583384]
[1744580728639,0.59061881,581.96,581.34,0.31583384]
[1744580728840,0.59061881,581.95,581.34,0.31583384]
[1744580729040,0.59061881,581.94,581.34,0.31583384]
[1744580729242,0.59061881,581.93,581.34,0.31583384]
[1744580729443,0.59061881,581.92,581.34,0.31583384]
[1744580729737,0.59061881,581.91,581.34,0.31583384]
[1744580729943,0.59061881,581.9,581.34,0.31583384]
[1744580730144,0.59061881,581.89,581.34,0.31583384]
[1744580730443,0.59058172,581.88,581.34,0.31583384]
[1744580730642,0.59058172,581.87,581.34,0.31583384]
[1744580730837,0.59058172,581.86,581.34,0.31583384]
[1744580731038,0.59058172,581.85,581.34,0.31583384]
[1744580731242,0.59058172,581.84,581.34,0.31583384]
[1744580731543,0.59058172,581.83,581.34,0.31583384]
[1744580731740,0.59058172,581.82,581.34,0.31583384]
[1744580731942,0.59058172,581.81,581.34,0.31583384]
[1744580732143,0.59058172,581.8,581.34,0.31583384]
[1744580732440,0.216,582.01,581.34,0.31583384]
[1744580732647,0.59065026,582.0,581.34,0.31583384]
[1744580732845,0.59065026,581.99,581.34,0.31583384]
[1744580733043,0.59065026,581.98,581.34,0.31583384]
[1744580733246,0.59065026,581.97,581.34,0.31583384]
[1744580733444,0.59065026,581.96,581.34,0.31583384]
[1744580733645,0.59065026,581.95,581.34,0.31583384]
[1744580733841,0.5906604,581.94,581.34,0.31583384]
[1744580734042,0.5906604,581.93,581.34,0.31583384]
[1744580734241,0.59064048,581.92,581.34,0.31583384]
[1744580734442,0.216,582.01,581.34,0.31583384]
[1744580734443,0.59064048,581.91,581.34,0.31583384]
[1744580734640,0.59064048,581.9,581.35,0.31581757]
[1744580734842,0.59064048,581.89,581.34,0.31581757]
[1744580735044,0.59064048,581.88,581.35,0.31581757]
[1744580735347,0.59064048,581.87,581.36,0.31581757]
[1744580735541,0.59064048,581.86,581.34,0.31581757]
[1744580735748,0.59064048,581.85,581.34,0.31581757]
[1744580736048,0.59064048,581.84,581.34,0.31581757]
[1744580736245,0.216,582.01,581.34,0.31581757]
[1744580736246,0.59064048,581.83,581.34,0.31581757]
[1744580736448,0.59064048,581.82,581.34,0.31581757]
[1744580736641,0.59064048,581.81,581.34,0.31581757]
[1744580736844,0.216,582.01,581.34,0.31581757]
[1744580737044,0.59047135,582.0,581.34,0.31581757]
[1744580737242,0.59047135,581.99,581.34,0.31581757]
[1744580737446,0.59047135,581.98,581.34,0.31581757]
[1744580737641,0.59047135,581.97,581.34,0.31581757]
[1744580737846,0.59047135,581.96,581.34,0.31581757]
[1744580738042,0.59047135,581.95,581.34,0.31581757]
[1744580738244,0.59047135,581.94,581.34,0.31581757]
[1744580738444,0.59047135,581.93,581.34,0.31581757]
[1744580738642,0.59047135,581.92,581.34,0.31581757]
[1744580738841,0.59047135,581.91,581.34,0.31581757]
[1744580739048,0.59047135,581.9,581.34,0.31581757]
[1744580739249,0.59045347,581.89,581.35,0.618]
[1744580739547,0.59045347,581.88,581.36,0.31581757]
[1744580739745,0.59045347,581.87,581.36,0.31581757]
[1744580739950,0.59045347,581.86,581.37,0.565]
[1744580740249,0.59045347,581.85,581.38,0.31581757]
[1744580740450,0.59045347,581.84,581.38,0.31581757]
[1744580740650,0.59045347,581.83,581.38,0.31581757]
[1744580740949,0.59045347,581.82,581.38,0.31581757]
[1744580741149,0.216,582.01,581.38,0.31581757]
[1744580741449,0.59031005,582.0,581.38,0.31581757]
[1744580741644,0.59031005,581.99,581.38,0.31581757]
[1744580741850,0.59031005,581.98,581.38,0.31581757]
[1744580742047,0.59031005,581.97,581.38,0.31581757]
[1744580742246,0.59031005,581.96,581.38,0.31581757]
[1744580742448,0.59031005,581.95,581.39,0.403]
[1744580742648,0.59031005,581.94,581.4,0.31581757]
[1744580742849,0.59031005,581.93,581.4,0.31581757]
[1744580743049,0.59031005,581.92,581.4,0.31581757]
[1744580743250,0.59031005,581.91,581.4,0.31581757]
[1744580743449,0.59031005,581.9,581.4,0.31581757]
[1744580743650,0.59031005,581.89,581.4,0.31581757]
[1744580743850,0.59031005,581.88,581.4,0.31581757]
[1744580744050,0.59031005,581.87,581.4,0.31581757]
[1744580744251,0.59031005,581.86,581.4,0.31581757]
[1744580744551,0.59029764,581.85,581.4,0.31581757]
[1744580744746,0.216,582.01,581.4,0.31581757]
[1744580744947,0.5902961,582.0,581.4,0.31581757]
[1744580745145,0.5902961,581.99,581.4,0.31581757]
[1744580745345,0.5902961,581.98,581.4,0.31581757]
[1744580745550,0.5902961,581.97,581.4,0.31581757]
[1744580745750,0.5902961,581.96,581.4,0.31581757]
[1744580745948,0.5902961,581.95,581.41,0.31579946]
[1744580746149,0.5902961,581.94,581.4,0.31579946]
[1744580746345,0.5902961,581.93,581.41,0.31579946]
[1744580746647,0.5902961,581.92,581.42,0.31579946]
[1744580746852,0.5902961,581.91,581.43,0.31579946]
[1744580747052,0.5902961,581.9,581.42,0.399]
[1744580747251,0.5902961,581.89,581.43,0.31579946]
[1744580747550,0.5902961,581.88,581.43,0.31579946]
[1744580747751,0.5902961,581.87,581.43,0.31579946]
[1744580748046,0.5902961,581.86,581.43,0.31579946]
[1744580748248,0.216,582.01,581.43,0.31579946]
[1744580748452,0.59016363,582.0,581.43,0.31579946]
[1744580748651,0.59016363,581.99,581.43,0.31579946]
[1744580748847,0.59016363,581.98,581.43,0.31579946]
[1744580749052,0.59016363,581.98,581.42,0.399]
[1744580749053,0.59016363,581.97,581.42,0.399]
[1744580749251,0.59016363,581.96,581.43,0.31579541]
[1744580749455,0.59016363,581.95,581.43,0.31579541]
[1744580749651,0.59016363,581.94,581.43,0.31579541]
[1744580749855,0.59016363,581.93,581.43,0.31579541]
[1744580750151,0.59016363,581.92,581.43,0.31579541]
[1744580750352,0.59016363,581.91,581.43,0.31579541]
[1744580750655,0.59016363,581.9,581.43,0.31579541]
[1744580750856,0.59016363,581.89,581.43,0.31579541]
[1744580751055,0.59016363,581.88,581.43,0.31579541]
[1744580751358,0.34344197,582.34,581.43,0.31579541]
[1744580751359,0.59016363,581.87,581.43,0.31579541]
[1744580751558,0.34344197,582.34,581.43,0.31579541]
[1744580751759,0.59006554,582.33,581.43,0.31579541]
[1744580751954,0.59006554,582.32,581.43,0.31579541]
[1744580752160,0.59006554,582.31,581.42,0.399]
[1744580752361,0.59006554,582.3,581.43,0.31579149]
[1744580752559,0.59006554,582.29,581.43,0.31579149]
[1744580752764,0.59006554,582.28,581.43,0.31579149]
[1744580752960,0.59006554,582.27,581.43,0.31579149]
[1744580753159,0.59006554,582.26,581.43,0.31579149]
[1744580753356,0.59006554,582.25,581.43,0.31579149]
[1744580753559,0.59006554,582.24,581.43,0.31579149]
[1744580753763,0.59006554,582.23,581.42,0.399]
[1744580754064,0.59006554,582.22,581.43,0.31579425]
[1744580754364,0.59006554,582.21,581.43,0.31579425]
[1744580754564,0.59006554,582.2,581.43,0.31579425]
[1744580754765,0.59006554,582.19,581.43,0.31579425]
[1744580754960,0.59006554,582.18,581.43,0.31579425]
[1744580755164,0.59006554,582.17,581.43,0.31579425]
[1744580755360,0.59006554,582.16,581.42,0.399]
[1744580755562,0.216,582.3,581.42,0.399]
[1744580755563,0.59006554,582.15,581.43,0.31579306]
[1744580755861,0.59006554,582.14,581.43,0.31579306]
[1744580756066,0.59006554,582.13,581.43,0.31579306]
[1744580756368,0.59006554,582.12,581.43,0.31579306]
[1744580756559,0.59006554,582.11,581.43,0.31579306]
[1744580756763,0.59006554,582.1,581.43,0.31579306]
[1744580756962,0.59006554,582.09,581.43,0.31579306]
[1744580757160,0.59006554,582.08,581.43,0.31579306]
[1744580757362,0.59006554,582.07,581.43,0.31579306]
[1744580757562,0.59006554,582.06,581.43,0.31579306]
[1744580757768,0.59006554,582.05,581.43,0.31579306]
[1744580757962,0.59006554,582.04,581.43,0.31579306]
[1744580758161,0.59006554,582.03,581.43,0.31579306]
[1744580758363,0.59006554,582.02,581.4,0.31579306]
[1744580758561,0.59006554,582.01,581.43,0.538]
[1744580758766,0.59006554,582.0,581.44,0.31579306]
[1744580758965,0.59006554,581.99,581.44,0.31579306]
[1744580759166,0.59006554,581.98,581.44,0.31579306]
[1744580759466,0.59006554,581.97,581.44,0.31579306]
[1744580759765,0.59006554,581.96,581.44,0.31579306]
[1744580759964,0.59006554,581.95,581.44,0.31579306]
[1744580760164,0.59006554,581.94,581.44,0.31579306]
[1744580760365,0.59006554,581.93,581.44,0.31579306]
[1744580760660,0.59006554,581.92,581.44,0.31579306]
[1744580760961,0.59006554,581.91,581.44,0.31579306]
[1744580761161,0.59006554,581.9,581.45,0.605]
[1744580761466,0.216,582.3,581.46,0.72578712]
[1744580761666,0.59031296,582.29,581.47,0.541]
[1744580761866,0.59031296,582.28,581.47,0.541]
[1744580762166,0.59031296,582.27,581.47,0.541]
[1744580762366,0.59031296,582.26,581.47,0.541]
[1744580762567,0.59031296,582.25,581.47,0.541]
[1744580762763,0.59031296,582.24,581.47,0.541]
[1744580762963,0.59031296,582.23,581.47,0.541]
[1744580763168,0.59031296,582.22,581.47,0.541]
[1744580763369,0.5902688,582.21,581.47,0.541]
[1744580763566,0.5902688,582.2,581.47,0.541]
[1744580763765,0.5902688,582.19,581.47,0.541]
[1744580763969,0.5902688,582.18,581.47,0.541]
[1744580764168,0.5902688,582.17,581.47,0.541]
[1744580764369,0.5902688,582.16,581.47,0.541]
[1744580764570,0.5902688,582.15,581.47,0.541]
[1744580764767,0.5902688,582.14,581.47,0.541]
[1744580764972,0.5902688,582.13,581.47,0.541]
[1744580765172,0.5902688,582.12,581.47,0.541]
[1744580765467,0.5902688,582.11,581.47,0.541]
[1744580765772,0.5902688,582.1,581.48,0.31577661]
[1744580765968,0.5902688,582.09,581.48,0.31577661]
[1744580766179,0.5902688,582.09,581.47,0.541]
[1744580766180,0.5902688,582.08,581.49,0.31577669]
[1744580766368,0.5902688,582.07,581.48,0.31577669]
[1744580766572,0.5902688,582.06,581.48,0.31577669]
[1744580766773,0.5902688,582.05,581.47,0.541]
[1744580766973,0.5902688,582.04,581.49,0.497]
[1744580767170,0.5902688,582.03,581.5,0.31577737]
[1744580767370,0.5902688,582.02,581.5,0.31577737]
[1744580767570,0.5902688,582.01,581.5,0.31577737]
[1744580767773,0.5902688,582.0,581.5,0.31577737]
[1744580767975,0.5902688,581.99,581.5,0.31577737]
[1744580768172,0.5902688,581.98,581.5,0.31577737]
[1744580768369,0.5902688,581.97,581.5,0.31577737]
[1744580768568,0.59007803,581.96,581.5,0.31577737]
[1744580768773,0.59007803,581.95,581.5,0.31577737]
[1744580768974,0.59007803,581.94,581.5,0.31577737]
[1744580769269,0.34344197,582.34,581.5,0.31577737]
[1744580769467,0.59004195,582.33,581.5,0.31577737]
[1744580769671,0.59004195,582.32,581.5,0.31577737]
[1744580769867,0.59004195,582.31,581.5,0.31577737]
[1744580770067,0.59004195,582.3,581.5,0.31577737]
[1744580770274,0.59004195,582.29,581.5,0.31577737]
[1744580770473,0.216,582.3,581.5,0.31577737]
[1744580770474,0.59004195,582.28,581.5,0.31577737]
[1744580770671,0.59004195,582.27,581.5,0.31577737]